lending/lending_fUSD_20240721
["ID","MTS","AMOUNT","RATE_DAILY","PERIOD"]
[332834364,1721562362386,-500.0,0.00044109,60]
[332834365,1721562362423,-1105.89,0.00044109,60]
[332834366,1721562362457,-500.0,0.00044109,60]
[332834367,1721562362493,-500.0,0.00044109,60]
[332834368,1721562362528,-500.0,0.00044109,60]
[332834369,1721562362563,-1888.52,0.00044109,60]
[332834370,1721562362597,-500.0,0.00044109,60]
[332834371,1721562362631,-500.0,0.00044109,60]
[332834372,1721562362668,-917.61,0.00044109,60]
[332834373,1721562362704,-2047.96,0.00044109,60]
[332834374,1721562362739,-1549.16,0.00044109,60]
[332834375,1721562362775,-500.0,0.00044109,60]
[332834376,1721562362812,-500.0,0.00044109,60]
[332834377,1721562362847,-2094.02,0.00044109,60]
[332834378,1721562362882,-500.0,0.00044109,60]
[332834379,1721562362917,-500.0,0.00044109,60]
[332834380,1721562362954,-500.0,0.00044109,60]
[332834381,1721562363197,-1771.08,0.00044109,60]
[332834382,1721562363233,-500.0,0.00044109,60]
[332834383,1721562363269,-500.0,0.00044109,60]
[332834384,1721562363304,-500.0,0.00044109,60]
[332834385,1721562363339,-500.0,0.00044109,60]
[332834386,1721562363374,-1596.13,0.00044109,60]
[332834387,1721562363411,-950.12,0.00044109,60]
[332834388,1721562363447,-500.0,0.00044109,60]
[332834389,1721562363483,-847.76,0.00044109,60]
[332834390,1721562363520,-1765.44,0.00044109,60]
[332834391,1721562363556,-500.0,0.00044109,60]
[332834392,1721562363593,-831.17,0.00044109,60]
[332834393,1721562363628,-1544.42,0.00044109,60]
[332834394,1721562363663,-932.75,0.00044109,60]
[332834395,1721562363703,-500.0,0.00044109,60]
[332834396,1721562363741,-790.55,0.00044109,60]
[332834397,1721562363776,-500.0,0.00044109,60]
[332834398,1721562363810,-500.0,0.00044109,60]
[332834399,1721562363846,-502.56459802,0.00044109,60]
[332834400,1721562363881,-984.42,0.00044109,60]
[332834401,1721562363919,-500.0,0.00044109,60]
[332834402,1721562363955,-532.82,0.00044109,60]
[332834403,1721562363991,-2712.47,0.00044109,60]
[332834404,1721562364029,-921.64,0.00044109,60]
[332834405,1721562364065,-500.0,0.00044109,60]
[332834406,1721562364102,-581.87,0.00044109,60]
[332834407,1721562364141,-946.96,0.00044109,60]
[332834408,1721562364177,-500.0,0.00044109,60]
[332834409,1721562364214,-702.37,0.00044109,60]
[332834410,1721562364249,-502.20907852,0.00044109,60]
[332834411,1721562364283,-1583.64,0.00044109,60]
[332834412,1721562364320,-500.0,0.00044109,60]
[332834413,1721562364356,-500.0,0.00044109,60]
[332834414,1721562364392,-500.0,0.00044109,60]
[332834415,1721562364429,-500.0,0.00044109,60]
[332834416,1721562364466,-500.0,0.00044109,60]
[332834417,1721562364502,-1587.58,0.00044109,60]
[332834418,1721562364542,-500.0,0.00044109,60]
[332834419,1721562364578,-539.61,0.00044109,60]
[332834420,1721562364613,-500.0,0.00044109,60]
[332834421,1721562364649,-1299.72,0.00044109,60]
[332834422,1721562364684,-1035.22,0.00044109,60]
[332834423,1721562364718,-500.0,0.00044109,60]
[332834424,1721562364754,-500.0,0.00044109,60]
[332834425,1721562364790,-2147.3,0.00044109,60]
[332834426,1721562364825,-1013.58,0.00044109,60]
[332834427,1721562364862,-2048.3,0.00044109,60]
[332834428,1721562364897,-1686.99,0.00044109,60]
[332834429,1721562364941,-500.0,0.00044109,60]
[332834430,1721562364980,-1659.73,0.00044109,60]
[332834431,1721562365021,-500.0,0.00044109,60]
[332834432,1721562365059,-500.0,0.00044109,60]
[332834433,1721562365098,-500.0,0.00044109,60]
[332834434,1721562365137,-500.0,0.00044109,60]
[332834435,1721562365177,-1366.59,0.00044109,60]
[332834436,1721562365215,-2381.33,0.00044109,60]
[332834437,1721562365250,-500.0,0.00044109,60]
[332834438,1721562365285,-909.73,0.00044109,60]
[332834439,1721562365320,-500.0,0.00044109,60]
[332834440,1721562365355,-1932.3,0.00044109,60]
[332834441,1721562365391,-580.4,0.00044109,60]
[332834442,1721562365425,-500.0,0.00044109,60]
[332834443,1721562365461,-500.0,0.00044109,60]
[332834444,1721562365496,-500.0,0.00044109,60]
[332834445,1721562365531,-2376.13,0.00044109,60]
[332834446,1721562365566,-913.7,0.00044109,60]
[332834447,1721562365604,-500.0,0.00044109,60]
[332834448,1721562365640,-500.0,0.00044109,60]
[332834449,1721562365674,-500.0,0.00044109,60]
[332834450,1721562365712,-500.0,0.00044109,60]
[332834451,1721562365751,-1403.22,0.00044109,60]
[332834452,1721562365786,-500.0,0.00044109,60]
[332834453,1721562365820,-1861.5,0.00044109,60]
[332834454,1721562365855,-500.0,0.00044109,60]
[332834455,1721562365890,-1425.16,0.00044109,60]
[332834456,1721562365927,-500.0,0.00044109,60]
[332834457,1721562365963,-500.0,0.00044109,60]
[332834458,1721562365999,-500.0,0.00044109,60]
[332834459,1721562366037,-1119.61,0.00044109,60]
[332834460,1721562366072,-500.0,0.00044109,60]
[332834461,1721562366105,-500.0,0.00044109,60]
[332834462,1721562366140,-150.0,0.00044109,60]
[332834463,1721562366175,-1431.11,0.00044109,60]
[332834464,1721562366214,-500.0,0.00044109,60]
[332834465,1721562366248,-500.0,0.00044109,60]
[332834466,1721562366284,-3709.45,0.00044109,60]
[332834467,1721562366319,-1244.18,0.00044109,60]
[332834468,1721562366353,-500.0,0.00044109,60]
[332834469,1721562366387,-2153.44,0.00044109,60]
[332834470,1721562366421,-500.0,0.00044109,60]
[332834471,1721562366456,-1864.71,0.00044109,60]
[332834472,1721562366492,-2314.69,0.00044109,60]
[332834473,1721562366526,-993.91,0.00044109,60]
[332834474,1721562366560,-500.0,0.00044109,60]
[332834475,1721562366595,-500.0,0.00044109,60]
[332834476,1721562366628,-500.0,0.00044109,60]
[332834477,1721562366662,-500.0,0.00044109,60]
[332834478,1721562366695,-2457.36,0.00044109,60]
[332834479,1721562366729,-557.62,0.00044109,60]
[332834480,1721562366762,-2777.75,0.00044109,60]
[332834481,1721562366796,-2623.06,0.00044109,60]
[332834482,1721562366830,-500.0,0.00044109,60]
[332834483,1721562366865,-500.0,0.00044109,60]
[332834484,1721562366901,-692.68,0.00044109,60]
[332834485,1721562367132,-500.0,0.00044109,60]
[332834486,1721562367170,-500.0,0.00044109,60]
[332834487,1721562367206,-2605.17,0.00044109,60]
[332834488,1721562367241,-501.66639867,0.00044109,60]
[332834489,1721562367277,-500.0,0.00044109,60]
[332834490,1721562367312,-500.0,0.00044109,60]
[332834491,1721562367348,-500.0,0.00044109,60]
[332834492,1721562367383,-500.0,0.00044109,60]
[332834493,1721562367417,-502.76134864,0.00044109,60]
[332834494,1721562367453,-1338.07,0.00044109,60]
[332834495,1721562367489,-1701.55,0.00044109,60]
[332834496,1721562367525,-789.11,0.00044109,60]
[332834497,1721562367562,-1241.72,0.00044109,60]
[332834498,1721562367598,-1872.58,0.00044109,60]
[332834499,1721562367636,-2349.57,0.00044109,60]
[332834500,1721562367673,-1852.89,0.00044109,60]
[332834501,1721562367708,-504.41818308,0.00044109,60]
[332834502,1721562367744,-863.58,0.00044109,60]
[332834503,1721562367780,-500.0,0.00044109,60]
[332834504,1721562367817,-500.0,0.00044109,60]
[332834505,1721562367853,-506.48688285,0.00044109,60]
[332834506,1721562367889,-1631.15,0.00044109,60]
[332834507,1721562367927,-500.0,0.00044109,60]
[332834508,1721562367965,-2329.39,0.00044109,60]
[332834509,1721562368001,-500.0,0.00044109,60]
[332834510,1721562368040,-2349.59,0.00044109,60]
[332834511,1721562368076,-504.50187742,0.00044109,60]
[332834512,1721562368112,-582.44,0.00044109,60]
[332834513,1721562368148,-578.23,0.00044109,60]
[332834514,1721562368188,-500.0,0.00044109,60]
[332834515,1721562368225,-1840.7,0.00044109,60]
[332834516,1721562368260,-494.69725991,0.00044109,60]
[332834517,1721562368295,-1866.37,0.00044109,60]
[332834518,1721562368331,-1095.48,0.00044109,60]
[332834519,1721562368366,-647.8,0.00044109,60]
[332834520,1721562368401,-2246.6,0.00044109,60]
[332834521,1721562368436,-500.0,0.00044109,60]
[332834522,1721562368471,-788.87,0.00044109,60]
[332834523,1721562368507,-503.27492463,0.00044109,60]
[332834524,1721562368542,-500.0,0.00044109,60]
[332834525,1721562368578,-500.0,0.00044109,60]
[332834526,1721562368615,-835.94,0.00044109,60]
[332834527,1721562368650,-1545.24,0.00044109,60]
[332834528,1721562368685,-1314.22,0.00044109,60]
[332834529,1721562368721,-500.0,0.00044109,60]
[332834530,1721562368757,-1987.2,0.00044109,60]
[332834531,1721562368793,-518.87,0.00044109,60]
[332834532,1721562368830,-500.0,0.00044109,60]
[332834533,1721562368874,-2693.52,0.00044109,60]
[332834534,1721562368916,-500.0,0.00044109,60]
[332834535,1721562368952,-606.21,0.00044109,60]
[332834536,1721562368988,-500.0,0.00044109,60]
[332834537,1721562369025,-500.0,0.00044109,60]
[332834538,1721562369061,-500.0,0.00044109,60]
[332834539,1721562369098,-815.98,0.00044109,60]
[332834540,1721562369135,-500.0,0.00044109,60]
[332834541,1721562369170,-500.0,0.00044109,60]
[332834542,1721562369206,-500.0,0.00044109,60]
[332834543,1721562369242,-507.25,0.00044109,60]
[332834544,1721562369276,-500.0,0.00044109,60]
[332834545,1721562369311,-960.08,0.00044109,60]
[332834546,1721562369345,-501.88097401,0.00044109,60]
[332834547,1721562369380,-500.0,0.00044109,60]
[332834548,1721562369415,-500.0,0.00044109,60]
[332834549,1721562369451,-3131.6,0.00044109,60]
[332834550,1721562369487,-1241.56,0.00044109,60]
[332834551,1721562369526,-556.47,0.00044109,60]
[332834552,1721562369562,-500.0,0.00044109,60]
[332834553,1721562369597,-500.0,0.00044109,60]
[332834554,1721562369630,-1513.97,0.00044109,60]
[332834555,1721562369681,-2753.42,0.00044109,60]
[332834556,1721562369717,-1359.26,0.00044109,60]
[332834557,1721562369754,-500.0,0.00044109,60]
[332834558,1721562369791,-500.0,0.00044109,60]
[332834559,1721562369830,-7160.16,0.00044109,60]
[332834560,1721562369866,-1898.7,0.00044109,60]
[332834561,1721562369901,-500.0,0.00044109,60]
[332834562,1721562369941,-500.0,0.00044109,60]
[332834563,1721562369978,-500.0,0.00044109,60]
[332834564,1721562370013,-500.0,0.00044109,60]
[332834565,1721562370054,-500.0,0.00044109,60]
[332834566,1721562370094,-1502.83,0.00044109,60]
[332834567,1721562370343,-938.43,0.00044109,60]
[332834568,1721562370378,-500.0,0.00044109,60]
[332834569,1721562370415,-6447.77,0.00044109,60]
[332834570,1721562370452,-500.0,0.00044109,60]
[332834571,1721562370487,-859.1,0.00044109,60]
[332834572,1721562370525,-1061.95,0.00044109,60]
[332834573,1721562370563,-1764.77,0.00044109,60]
[332834574,1721562370600,-625.09,0.00044109,60]
[332834575,1721562370637,-2019.77,0.00044109,60]
[332834576,1721562370673,-4897.96,0.00044109,60]
[332834577,1721562370712,-2163.62,0.00044109,60]
[332834578,1721562370748,-1928.29,0.00044109,60]
[332834579,1721562370783,-500.0,0.00044109,60]
[332834580,1721562370817,-500.0,0.00044109,60]
[332834581,1721562370854,-917.46,0.00044109,60]
[332834582,1721562370893,-792.08,0.00044109,60]
[332834583,1721562370933,-825.43,0.00044109,60]
[332834584,1721562370971,-583.35,0.00044109,60]
[332834585,1721562371009,-500.0,0.00044109,60]
[332834586,1721562371051,-761.72,0.00044109,60]
[332834587,1721562371089,-500.0,0.00044109,60]
[332834588,1721562371323,-500.0,0.00044109,60]
[332834589,1721562371359,-500.0,0.00044109,60]
[332834590,1721562371395,-500.0,0.00044109,60]
[332834591,1721562371431,-500.0,0.00044109,60]
[332834592,1721562371468,-506.32,0.00044109,60]
[332834593,1721562371505,-2310.88,0.00044109,60]
[332834594,1721562371541,-6639.0,0.00044109,60]
[332834595,1721562371577,-1209.94,0.00044109,60]
[332834596,1721562371611,-870.79,0.00044109,60]
[332834597,1721562371646,-500.0,0.00044109,60]
[332834598,1721562371681,-500.0,0.00044109,60]
[332834599,1721562371716,-500.0,0.00044109,60]
[332834600,1721562371749,-500.0,0.00044109,60]
[332834601,1721562371782,-2000.0,0.00044109,60]
[332834602,1721562371820,-1021.77,0.00044109,60]
[332834603,1721562371857,-800.19,0.00044109,60]
[332834604,1721562371893,-500.0,0.00044109,60]
[332834605,1721562371929,-849.87,0.00044109,60]
[332834606,1721562371964,-500.0,0.00044109,60]
[332834607,1721562371999,-500.0,0.00044109,60]
[332834608,1721562372037,-500.0,0.00044109,60]
[332834609,1721562372075,-500.0,0.00044109,60]
[332834610,1721562372113,-500.0,0.00044109,60]
[332834611,1721562372151,-1671.2,0.00044109,60]
[332834612,1721562372190,-500.0,0.00044109,60]
[332834613,1721562372228,-2045.26,0.00044109,60]
[332834614,1721562372266,-525.8,0.00044109,60]
[332834615,1721562372302,-1192.78,0.00044109,60]
[332834616,1721562372337,-500.0,0.00044109,60]
[332834617,1721562372372,-1211.68,0.00044109,60]
[332834618,1721562372410,-500.0,0.00044109,60]
[332834619,1721562372445,-3091.12,0.00044109,60]
[332834620,1721562372482,-500.0,0.00044109,60]
[332834621,1721562372518,-500.0,0.00044109,60]
[332834622,1721562372553,-2579.81,0.00044109,60]
[332834623,1721562372589,-574.26,0.00044109,60]
[332834624,1721562372624,-1554.69,0.00044109,60]
[332834625,1721562372659,-941.15,0.00044109,60]
[332834626,1721562372697,-1533.91,0.00044109,60]
[332834627,1721562372732,-512.52,0.00044109,60]
[332834628,1721562372766,-500.0,0.00044109,60]
[332834629,1721562372801,-501.69816707,0.00044109,60]
[332834630,1721562372835,-500.0,0.00044109,60]
[332834631,1721562372869,-588.29,0.00044109,60]
[332834632,1721562372904,-2056.02,0.00044109,60]
[332834633,1721562372940,-500.0,0.00044109,60]
[332834634,1721562372977,-1785.79,0.00044109,60]
[332834635,1721562373012,-568.53,0.00044109,60]
[332834636,1721562373052,-701.71,0.00044109,60]
[332834637,1721562373090,-1619.53,0.00044109,60]
[332834638,1721562373128,-500.0,0.00044109,60]
[332834639,1721562373164,-972.08,0.00044109,60]
[332834640,1721562373200,-2102.75,0.00044109,60]
[332834641,1721562373235,-1283.54,0.00044109,60]
[332834642,1721562373271,-2927.59,0.00044109,60]
[332834643,1721562373306,-500.0,0.00044109,60]
[332834644,1721562373340,-2055.14,0.00044109,60]
[332834645,1721562373376,-2146.1,0.00044109,60]
[332834646,1721562373410,-500.0,0.00044109,60]
[332834647,1721562373445,-1833.17,0.00044109,60]
[332834648,1721562373479,-500.0,0.00044109,60]
[332834649,1721562373514,-559.12,0.00044109,60]
[332834650,1721562373548,-1832.65,0.00044109,60]
[332834651,1721562373581,-500.0,0.00044109,60]
[332834652,1721562373614,-2165.88,0.00044109,60]
[332834653,1721562373648,-500.0,0.00044109,60]
[332834654,1721562373683,-500.0,0.00044109,60]
[332834655,1721562373718,-1019.57,0.00044109,60]
[332834656,1721562373753,-500.0,0.00044109,60]
[332834657,1721562373787,-353.64429333,0.00044109,60]
[332834658,1721562373819,-500.0,0.00044109,60]
[332834659,1721562373852,-500.0,0.00044109,60]
[332834660,1721562373885,-2058.74,0.00044109,60]
[332834661,1721562373918,-500.0,0.00044109,60]
[332834662,1721562373952,-2919.56,0.00044109,60]
[332834663,1721562373987,-706.48,0.00044109,60]
[332834664,1721562374027,-1123.39,0.00044109,60]
[332834665,1721562374064,-1210.27,0.00044109,60]
[332834666,1721562374101,-1481.73,0.00044109,60]
[332834667,1721562374137,-500.0,0.00044109,60]
[332834668,1721562374174,-500.0,0.00044109,60]
[332834669,1721562374210,-591.17,0.00044109,60]
[332834670,1721562374246,-500.0,0.00044109,60]
[332834671,1721562374284,-500.0,0.00044109,60]
[332834672,1721562374323,-1432.29,0.00044109,60]
[332834673,1721562374361,-1056.88,0.00044109,60]
[332834674,1721562374396,-1330.89,0.00044109,60]
[332834675,1721562374433,-500.0,0.00044109,60]
[332834676,1721562374474,-500.0,0.00044109,60]
[332834677,1721562374511,-500.0,0.00044109,60]
[332834678,1721562374547,-461.14182495,0.00044109,60]
[332834679,1721562374583,-988.83,0.00044109,60]
[332834680,1721562374618,-1360.2,0.00044109,60]
[332834681,1721562374654,-1961.99,0.00044109,60]
[332834682,1721562374689,-500.0,0.00044109,60]
[332834683,1721562374724,-1175.39,0.00044109,60]
[332834684,1721562374760,-500.0,0.00044109,60]
[332834685,1721562374794,-500.0,0.00044109,60]
[332834686,1721562374827,-1775.63,0.00044109,60]
[332834687,1721562374864,-500.0,0.00044109,60]
[332834688,1721562374901,-500.0,0.00044109,60]
[332834689,1721562374943,-500.0,0.00044109,60]
[332834690,1721562374984,-500.0,0.00044109,60]
[332834691,1721562375025,-1440.0,0.00044109,60]
[332834692,1721562375260,-2804.4,0.00044109,60]
[332834693,1721562375300,-1087.26,0.00044109,60]
[332834694,1721562375340,-1667.31,0.00044109,60]
[332834695,1721562375380,-626.11,0.00044109,60]
[332834696,1721562375421,-14542.08,0.00044109,60]
[332834697,1721562375460,-500.0,0.00044109,60]
[332834698,1721562375495,-1168.18,0.00044109,60]
[332834699,1721562375534,-1384.47,0.00044109,60]
[332834700,1721562375570,-1041.33,0.00044109,60]
[332834701,1721562375609,-508.68282532,0.00044109,60]
[332834702,1721562375644,-500.0,0.00044109,60]
[332834703,1721562375684,-1364.5,0.00044109,60]
[332834704,1721562375720,-500.0,0.00044109,60]
[332834705,1721562375755,-10582.84,0.00044109,60]
[332834706,1721562375790,-500.0,0.00044109,60]
[332834707,1721562375826,-500.0,0.00044109,60]
[332834708,1721562375861,-3018.98,0.00044109,60]
[332834709,1721562375899,-2156.98,0.00044109,60]
[332834710,1721562375936,-2000.0,0.00044109,30]
[332834711,1721562375974,-500.0,0.00044109,60]
[332834712,1721562376011,-1043.6,0.00044109,60]
[332834713,1721562376054,-577.57932413,0.00044109,60]
[332834714,1721562376090,-2651.26,0.00044109,60]
[332834715,1721562376129,-562.21,0.00044109,60]
[332834716,1721562376165,-500.0,0.00044109,60]
[332834717,1721562376203,-500.0,0.00044109,60]
[332834718,1721562376238,-1662.91,0.00044109,60]
[332834719,1721562376275,-500.0,0.00044109,60]
[332834720,1721562376312,-828.34,0.00044109,60]
[332834721,1721562376346,-500.0,0.00044109,60]
[332834722,1721562376381,-534.85,0.00044109,60]
[332834723,1721562376416,-768.8,0.00044109,60]
[332834724,1721562376451,-500.0,0.00044109,60]
[332834725,1721562376485,-500.0,0.00044109,60]
[332834726,1721562376523,-3806.9,0.00044109,60]
[332834727,1721562376561,-2864.26,0.00044109,60]
[332834728,1721562376597,-699.02,0.00044109,60]
[332834729,1721562376632,-500.0,0.00044109,60]
[332834730,1721562376667,-2848.82,0.00044109,60]
[332834731,1721562376702,-500.0,0.00044109,60]
[332834732,1721562376737,-694.74,0.00044109,60]
[332834733,1721562376772,-500.0,0.00044109,60]
[332834734,1721562376807,-500.0,0.00044109,60]
[332834735,1721562376843,-500.0,0.00044109,60]
[332834736,1721562376880,-506.36182934,0.00044109,60]
[332834737,1721562376917,-500.0,0.00044109,60]
[332834738,1721562376954,-500.0,0.00044109,60]
[332834739,1721562376991,-501.81684353,0.00044109,60]
[332834740,1721562377028,-500.0,0.00044109,60]
[332834741,1721562377065,-802.38,0.00044109,60]
[332834742,1721562377102,-500.0,0.00044109,60]
[332834743,1721562377137,-1262.18,0.00044109,60]
[332834744,1721562377174,-546.0,0.00044109,60]
[332834745,1721562377209,-1932.95,0.00044109,60]
[332834746,1721562377245,-501.44611352,0.00044109,60]
[332834747,1721562377279,-2812.15,0.00044109,60]
[332834748,1721562377315,-911.09,0.00044109,60]
[332834749,1721562377351,-500.0,0.00044109,60]
[332834750,1721562377387,-500.0,0.00044109,60]
[332834751,1721562377424,-4178.38,0.00044109,60]
[332834752,1721562377461,-1154.95,0.00044109,60]
[332834753,1721562377499,-1112.6,0.00044109,60]
[332834754,1721562377535,-500.0,0.00044109,60]
[332834755,1721562377570,-500.0,0.00044109,60]
[332834756,1721562377605,-1956.26,0.00044109,60]
[332834757,1721562377639,-4802.07,0.00044109,60]
[332834758,1721562377673,-500.0,0.00044109,60]
[332834759,1721562377710,-500.0,0.00044109,60]
[332834760,1721562377744,-500.0,0.00044109,60]
[332834761,1721562377782,-929.78,0.00044109,60]
[332834762,1721562377816,-916.91,0.00044109,60]
[332834763,1721562377849,-2479.11,0.00044109,60]
[332834764,1721562377883,-500.0,0.00044109,60]
[332834765,1721562377918,-387.08263203,0.00044109,60]
[332834766,1721562377953,-502.30227635,0.00044109,60]
[332834767,1721562377987,-500.0,0.00044109,60]
[332834768,1721562378025,-500.0,0.00044109,60]
[332834769,1721562378061,-500.0,0.00044109,60]
[332834770,1721562378098,-694.37,0.00044109,60]
[332834771,1721562378137,-1208.28,0.00044109,60]
[332834772,1721562378174,-1923.27,0.00044109,60]
[332834773,1721562378210,-10249.26,0.00044109,60]
[332834774,1721562378245,-500.0,0.00044109,60]
[332834775,1721562378278,-500.0,0.00044109,60]
[332834776,1721562378313,-1666.33,0.00044109,60]
[332834777,1721562378348,-500.0,0.00044109,60]
[332834778,1721562378381,-500.0,0.00044109,60]
[332834779,1721562378417,-500.0,0.00044109,60]
[332834780,1721562378451,-8515.16,0.00044109,60]
[332834781,1721562378487,-500.0,0.00044109,60]
[332834782,1721562378522,-605.85,0.00044109,60]
[332834783,1721562378555,-500.0,0.00044109,60]
[332834784,1721562378590,-500.0,0.00044109,60]
[332834785,1721562378623,-500.0,0.00044109,60]
[332834786,1721562378657,-500.0,0.00044109,60]
[332834787,1721562378693,-1000.0,0.00044109,60]
[332834788,1721562378730,-1044.79,0.00044109,60]
[332834789,1721562378764,-500.0,0.00044109,60]
[332834790,1721562378798,-500.0,0.00044109,60]
[332834791,1721562378833,-1993.49,0.00044109,60]
[332834792,1721562378867,-2607.43,0.00044109,60]
[332834793,1721562378904,-500.0,0.00044109,60]
[332834794,1721562378941,-2442.5,0.00044109,60]
[332834795,1721562379174,-500.0,0.00044109,60]
[332834796,1721562379213,-2465.29,0.00044109,60]
[332834797,1721562379250,-1156.27,0.00044109,60]
[332834798,1721562379287,-1651.31,0.00044109,60]
[332834799,1721562379323,-857.7,0.00044109,60]
[332834800,1721562379359,-614.69,0.00044109,60]
[332834801,1721562379397,-500.0,0.00044109,60]
[332834802,1721562379434,-500.0,0.00044109,60]
[332834803,1721562379470,-964.54,0.00044109,60]
[332834804,1721562379506,-500.0,0.00044109,60]
[332834805,1721562379541,-500.0,0.00044109,60]
[332834806,1721562379580,-1410.41,0.00044109,60]
[332834807,1721562379617,-500.0,0.00044109,60]
[332834808,1721562379655,-1976.74,0.00044109,60]
[332834809,1721562379693,-3782.82,0.00044109,60]
[332834810,1721562379729,-500.0,0.00044109,60]
[332834811,1721562379765,-500.0,0.00044109,60]
[332834812,1721562379801,-2551.98202402,0.00044109,60]
[332834813,1721562419698,-1206.08945667,0.00031432,15]
[332834814,1721562419733,-621.97897978,0.000328,30]
[332834815,1721562419769,-15938.90957158,0.000329,30]
[332834816,1721562419803,-1206.08945667,0.00034008,15]
[332834817,1721562419843,-1206.08945667,0.00036584,15]
[332834818,1721562419900,-500.0,0.00039,120]
[332834819,1721562419938,-334.55694797,0.00043748,30]
[332834820,1721562419974,-500.0,0.00043835,60]
[332834821,1721562420008,-4349.87,0.00043835,60]
[332834822,1721562420043,-897.27,0.00043835,60]
[332834823,1721562420078,-288.67104163,0.00043835,60]
[332834824,1721562420114,-500.0,0.00043835,60]
[332834825,1721562420148,-500.0,0.00043835,60]
[332834826,1721562420186,-779.84,0.00043835,60]
[332834827,1721562420224,-2831.42,0.00043835,60]
[332834828,1721562420258,-500.0,0.00043835,60]
[332834829,1721562420292,-5862.38,0.00043835,21]
[332834830,1721562420325,-500.0,0.00043835,60]
[332834831,1721562420357,-797.05,0.00043835,60]
[332834832,1721562420389,-154.71327228,0.00043835,60]
[332834833,1721562420422,-500.0,0.00043835,60]
[332834834,1721562420454,-150.0,0.00043835,60]
[332834835,1721562420486,-1449.32,0.00043835,60]
[332834836,1721562420518,-611.71,0.00043835,60]
[332834837,1721562420552,-500.0,0.00043835,60]
[332834838,1721562420584,-500.0,0.00043835,60]
[332834839,1721562420616,-2307.85,0.00043835,60]
[332834840,1721562420648,-1220.31,0.00043835,60]
[332834841,1721562420682,-1547.85,0.00043835,60]
[332834842,1721562420713,-1404.45,0.00043835,60]
[332834843,1721562420746,-500.0,0.00043835,60]
[332834844,1721562420781,-500.0,0.00043835,60]
[332834845,1721562420812,-500.0,0.00043835,60]
[332834846,1721562420842,-500.0,0.00043835,60]
[332834847,1721562420874,-2145.84,0.00043835,60]
[332834848,1721562420906,-500.0,0.00043835,60]
[332834849,1721562420941,-500.0,0.00043835,60]
[332834850,1721562420973,-482.71035956,0.00043835,60]
[332834851,1721562421004,-500.0,0.00043835,60]
[332834852,1721562421038,-500.0,0.00043835,60]
[332834853,1721562421073,-771.19,0.00043835,60]
[332834854,1721562421108,-558.3,0.00043835,60]
[332834855,1721562421142,-2587.27,0.00043835,60]
[332834856,1721562421176,-892.89,0.00043835,60]
[332834857,1721562421211,-1698.04,0.00043835,60]
[332834858,1721562421245,-500.0,0.00043835,60]
[332834859,1721562421279,-4298.51,0.00043835,60]
[332834860,1721562421312,-1673.38,0.00043835,60]
[332834861,1721562421344,-755.63,0.00043835,60]
[332834862,1721562421377,-500.0,0.00043835,60]
[332834863,1721562421408,-500.0,0.00043835,60]